Workbook

Sheet 1、公共预算收入
A1: 附表1
A2: 市本级2018年地方一般公共预算收入执行情况
C3: 单位：万元
A4: 科目编码 | B4: 科目名称 | C4: 金额
B5: 一般预算收入合计 | C5: 113302
A6: 101 | B6: 税收收入 | C6: 79424
A7: 10101 | B7: 国内增值税（含改征增值税） | C7: 31157
A8: 10103 | B8: 营业税 | C8: 190
A9: 10104 | B9: 企业所得税 | C9: 10836
A10: 10106 | B10: 个人所得税 | C10: 6412
A11: 10107 | B11: 资源税 | C11: 0
A12: 10109 | B12: 城市维护建设税 | C12: 5162
A13: 10110 | B13: 房产税 | C13: 2267
A14: 10111 | B14: 印花税 | C14: 807
A15: 10112 | B15: 城镇土地使用税 | C15: 1108
A16: 10113 | B16: 土地增值税 | C16: 6232
A17: 10114 | B17: 车船税 | C17: 3730
A18: 10118 | B18: 耕地占用税 | C18: 8200
A19: 10119 | B19: 契税 | C19: 3301
A20: 10121 | B20: 环境保护税 | C20: 22
A21: 103 | B21: 非税收入 | C21: 33878
A22: 10302 | B22: 专项收入 | C22: 8186
A23: 10304 | B23: 行政事业性收费收入 | C23: 9002
A24: 10305 | B24: 罚没收入 | C24: 5382
A25: 10306 | B25: 国有资本经营收入 | C25: 40
A26: 10307 | B26: 国有资源（资产）有偿使用收入 | C26: 8098
A27: 10308 | B27: 捐赠收入 | C27: 13
A28: 10309 | B28: 政府住房基金收入 | C28: 2397
A29: 10399 | B29: 其他收入 | C29: 760

Sheet 2、公共预算支出
A1: 附表2
A2: 市本级2018年一般公共预算支出执行情况表
C3: 单位：万元
A4: 科目编码 | B4: 科目名称 | C4: 金额
B5: 一般公共预算支出合计 | C5: 223582
A6: 201 | B6: 一般公共服务支出 | C6: 31396
A7: 20101 | B7: 人大事务 | C7: 1134
A8: 2010101 | B8: 行政运行 | C8: 813
A9: 2010102 | B9: 一般行政管理事务 | C9: 38
A10: 2010103 | B10: 机关服务 | C10: 55
A11: 2010104 | B11: 人大会议 | C11: 90
A12: 2010105 | B12: 人大立法 | C12: 5
A13: 2010106 | B13: 人大监督 | C13: 50
A14: 2010108 | B14: 代表工作 | C14: 83
A15: 20102 | B15: 政协事务 | C15: 978
A16: 2010201 | B16: 行政运行 | C16: 760
A17: 2010202 | B17: 一般行政管理事务 | C17: 69
A18: 2010204 | B18: 政协会议 | C18: 39
A19: 2010205 | B19: 委员视察 | C19: 51
A20: 2010206 | B20: 参政议政 | C20: 59
A21: 20103 | B21: 政府办公厅(室)及相关机构事务 | C21: 5211
A22: 2010301 | B22: 行政运行 | C22: 1121
A23: 2010303 | B23: 机关服务 | C23: 597
A24: 2010304 | B24: 专项服务 | C24: 60
A25: 2010305 | B25: 专项业务活动 | C25: 1259
A26: 2010306 | B26: 政务公开审批 | C26: 991
A27: 2010307 | B27: 法制建设 | C27: 134
A28: 2010308 | B28: 信访事务 | C28: 327
A29: 2010350 | B29: 事业运行 | C29: 252
A30: 2010399 | B30: 其他政府办公厅(室)及相关机构事务支出 | C30: 470
A31: 20104 | B31: 发展与改革事务 | C31: 1184
A32: 2010401 | B32: 行政运行 | C32: 479
A33: 2010404 | B33: 战略规划与实施 | C33: 63
A34: 2010408 | B34: 物价管理 | C34: 412
A35: 2010450 | B35: 事业运行 | C35: 22
A36: 2010499 | B36: 其他发展与改革事务支出 | C36: 208
A37: 20105 | B37: 统计信息事务 | C37: 679
A38: 2010501 | B38: 行政运行 | C38: 385
A39: 2010505 | B39: 专项统计业务 | C39: 132
A40: 2010506 | B40: 统计管理 | C40: 52
A41: 2010507 | B41: 专项普查活动 | C41: 110
A42: 20106 | B42: 财政事务 | C42: 1686
A43: 2010601 | B43: 行政运行 | C43: 1219
A44: 2010602 | B44: 一般行政管理事务 | C44: 49
A45: 2010604 | B45: 预算改革业务 | C45: 55
A46: 2010605 | B46: 财政国库业务 | C46: 70
A47: 2010607 | B47: 信息化建设 | C47: 150
A48: 2010608 | B48: 财政委托业务支出 | C48: 67
A49: 2010699 | B49: 其他财政事务支出 | C49: 76
A50: 20107 | B50: 税收事务 | C50: 3400
A51: 2010701 | B51: 行政运行 | C51: 3400
A52: 20108 | B52: 审计事务 | C52: 507
A53: 2010801 | B53: 行政运行 | C53: 477
A54: 2010804 | B54: 审计业务 | C54: 15
A55: 2010899 | B55: 其他审计事务支出 | C55: 15
A56: 20110 | B56: 人力资源事务 | C56: 835
A57: 2011001 | B57: 行政运行 | C57: 118
A58: 2011002 | B58: 一般行政管理事务 | C58: 14
A59: 2011006 | B59: 军队转业干部安置 | C59: 33
A60: 2011008 | B60: 引进人才费用 | C60: 651
A61: 2011011 | B61: 公务员招考 | C61: 10
A62: 2011099 | B62: 其他人力资源事务支出 | C62: 9
A63: 20111 | B63: 纪检监察事务 | C63: 3806
A64: 2011101 | B64: 行政运行 | C64: 1470
A65: 2011102 | B65: 一般行政管理事务 | C65: 799
A66: 2011104 | B66: 大案要案查处 | C66: 816
A67: 2011105 | B67: 派驻派出机构 | C67: 187
A68: 2011199 | B68: 其他纪检监察事务支出 | C68: 534
A69: 20113 | B69: 商贸事务 | C69: 430
A70: 2011301 | B70: 行政运行 | C70: 5
A71: 2011308 | B71: 招商引资 | C71: 324
A72: 2011399 | B72: 其他商贸事务支出 | C72: 101
A73: 20114 | B73: 知识产权事务 | C73: 15
A74: 2011499 | B74: 其他知识产权事务支出 | C74: 15
A75: 20115 | B75: 工商行政管理事务 | C75: 2338
A76: 2011501 | B76: 行政运行 | C76: 2152
A77: 2011502 | B77: 一般行政管理事务 | C77: 18
A78: 2011504 | B78: 工商行政管理专项 | C78: 150
A79: 2011506 | B79: 消费者权益保护 | C79: 8
A80: 2011599 | B80: 其他工商行政管理事务支出 | C80: 10
A81: 20117 | B81: 质量技术监督与检验检疫事务 | C81: 1513
A82: 2011701 | B82: 行政运行 | C82: 856
A83: 2011706 | B83: 质量技术监督行政执法及业务管理 | C83: 484
A84: 2011708 | B84: 认证认可监督管理 | C84: 9
A85: 2011709 | B85: 标准化管理 | C85: 1
A86: 2011750 | B86: 事业运行 | C86: 163
A87: 20123 | B87: 民族事务 | C87: 89
A88: 2012301 | B88: 行政运行 | C88: 66
A89: 2012399 | B89: 其他民族事务支出 | C89: 23
A90: 20124 | B90: 宗教事务 | C90: 45
A91: 2012401 | B91: 行政运行 | C91: 1
A92: 2012404 | B92: 宗教工作专项 | C92: 32
A93: 2012499 | B93: 其他宗教事务支出 | C93: 12
A94: 20125 | B94: 港澳台侨事务 | C94: 107
A95: 2012501 | B95: 行政运行 | C95: 50
A96: 2012502 | B96: 一般行政管理事务 | C96: 20
A97: 2012505 | B97: 台湾事务 | C97: 33
A98: 2012506 | B98: 华侨事务 | C98: 4
A99: 20126 | B99: 档案事务 | C99: 388
A100: 2012601 | B100: 行政运行 | C100: 203
A101: 2012602 | B101: 一般行政管理事务 | C101: 182
A102: 2012604 | B102: 档案馆 | C102: 3
A103: 20128 | B103: 民主党派及工商联事务 | C103: 152
A104: 2012801 | B104: 行政运行 | C104: 85
A105: 2012802 | B105: 一般行政管理事务 | C105: 38
A106: 2012899 | B106: 其他民主党派及工商联事务支出 | C106: 29
A107: 20129 | B107: 群众团体事务 | C107: 655
A108: 2012901 | B108: 行政运行 | C108: 386
A109: 2012902 | B109: 一般行政管理事务 | C109: 255
A110: 2012999 | B110: 其他群众团体事务支出 | C110: 14
A111: 20131 | B111: 党委办公厅(室)及相关机构事务 | C111: 1292
A112: 2013101 | B112: 行政运行 | C112: 978
A113: 2013102 | B113: 一般行政管理事务 | C113: 17
A114: 2013105 | B114: 专项业务 | C114: 292
A115: 2013199 | B115: 其他党委办公厅(室)及相关机构事务支出 | C115: 5
A116: 20132 | B116: 组织事务 | C116: 649
A117: 2013201 | B117: 行政运行 | C117: 469
A118: 2013202 | B118: 一般行政管理事务 | C118: 74
A119: 2013299 | B119: 其他组织事务支出 | C119: 106
A120: 20133 | B120: 宣传事务 | C120: 574
A121: 2013301 | B121: 行政运行 | C121: 339
A122: 2013302 | B122: 一般行政管理事务 | C122: 123
A123: 2013399 | B123: 其他宣传事务支出 | C123: 112
A124: 20134 | B124: 统战事务 | C124: 209
A125: 2013401 | B125: 行政运行 | C125: 116
A126: 2013402 | B126: 一般行政管理事务 | C126: 93
A127: 20136 | B127: 其他共产党事务支出 | C127: 570
A128: 2013602 | B128: 一般行政管理事务 | C128: 25
A129: 2013699 | B129: 其他共产党事务支出 | C129: 545
A130: 20199 | B130: 其他一般公共服务支出(款) | C130: 2950
A131: 2019999 | B131: 其他一般公共服务支出(项) | C131: 2950
A132: 203 | B132: 国防支出 | C132: 444
A133: 20306 | B133: 国防动员 | C133: 444
A134: 2030606 | B134: 预备役部队 | C134: 199
A135: 2030607 | B135: 民兵 | C135: 245
A136: 204 | B136: 公共安全支出 | C136: 25465
A137: 20401 | B137: 武装警察 | C137: 1996
A138: 2040103 | B138: 消防 | C138: 1586
A139: 2040104 | B139: 警卫 | C139: 410
A140: 20402 | B140: 公安 | C140: 22617
A141: 2040201 | B141: 行政运行 | C141: 14497
A142: 2040202 | B142: 一般行政管理事务 | C142: 774
A143: 2040204 | B143: 治安管理 | C143: 645
A144: 2040205 | B144: 国内安全保卫 | C144: 45
A145: 2040208 | B145: 出入境管理 | C145: 80
A146: 2040212 | B146: 道路交通管理 | C146: 3938
A147: 2040214 | B147: 反恐怖 | C147: 3
A148: 2040217 | B148: 拘押收教场所管理 | C148: 145
A149: 2040218 | B149: 警犬繁育及训养 | C149: 41
A150: 2040219 | B150: 信息化建设 | C150: 800
A151: 2040299 | B151: 其他公安支出 | C151: 1649
A152: 20403 | B152: 国家安全 | C152: 100
A153: 2040304 | B153: 安全业务 | C153: 100
A154: 20406 | B154: 司法 | C154: 676
A155: 2040601 | B155: 行政运行 | C155: 379
A156: 2040604 | B156: 基层司法业务 | C156: 5
A157: 2040605 | B157: 普法宣传 | C157: 10
A158: 2040607 | B158: 法律援助 | C158: 23
A159: 2040609 | B159: 仲裁 | C159: 10
A160: 2040610 | B160: 社区矫正 | C160: 7
A161: 2040699 | B161: 其他司法支出 | C161: 242
A162: 20409 | B162: 国家保密 | C162: 76
A163: 2040901 | B163: 行政运行 | C163: 62
A164: 2040902 | B164: 一般行政管理事务 | C164: 14
A165: 205 | B165: 教育支出 | C165: 27631
A166: 20501 | B166: 教育管理事务 | C166: 1803
A167: 2050101 | B167: 行政运行 | C167: 497
A168: 2050102 | B168: 一般行政管理事务 | C168: 1269
A169: 2050199 | B169: 其他教育管理事务支出 | C169: 37
A170: 20502 | B170: 普通教育 | C170: 11422
A171: 2050201 | B171: 学前教育 | C171: 69
A172: 2050202 | B172: 小学教育 | C172: 40
A173: 2050204 | B173: 高中教育 | C173: 11311
A174: 2050299 | B174: 其他普通教育支出 | C174: 2
A175: 20503 | B175: 职业教育 | C175: 11781
A176: 2050302 | B176: 中专教育 | C176: 2556
A177: 2050303 | B177: 技校教育 | C177: 2911
A178: 2050304 | B178: 职业高中教育 | C178: 416
A179: 2050305 | B179: 高等职业教育 | C179: 5858
A180: 2050399 | B180: 其他职业教育支出 | C180: 40
A181: 20508 | B181: 进修及培训 | C181: 2625
A182: 2050802 | B182: 干部教育 | C182: 2625
A183: 206 | B183: 科学技术支出 | C183: 2781
A184: 20601 | B184: 科学技术管理事务 | C184: 206
A185: 2060101 | B185: 行政运行 | C185: 206
A186: 20604 | B186: 技术研究与开发 | C186: 294
A187: 2060402 | B187: 应用技术研究与开发 | C187: 285
A188: 2060403 | B188: 产业技术研究与开发 | C188: 9
A189: 20605 | B189: 科技条件与服务 | C189: 1005
A190: 2060502 | B190: 技术创新服务体系 | C190: 1000
A191: 2060599 | B191: 其他科技条件与服务支出 | C191: 5
A192: 20607 | B192: 科学技术普及 | C192: 120
A193: 2060701 | B193: 机构运行 | C193: 76
A194: 2060702 | B194: 科普活动 | C194: 40
A195: 2060799 | B195: 其他科学技术普及支出 | C195: 4
A196: 20699 | B196: 其他科学技术支出 | C196: 1156
A197: 2069901 | B197: 科技奖励 | C197: 1136
A198: 2069999 | B198: 其他科学技术支出 | C198: 20
A199: 207 | B199: 文化体育与传媒支出 | C199: 6530
A200: 20701 | B200: 文化 | C200: 2195
... 314 more rows

Sheet 3、一般债务限额
A1: 表3
A2: 随州市2018年一般政府债务余额表
A3: 单位：万元
A4: 地 区 | B4: 一般债务
B5: 余额 | C5: 限额
A6: 随州市 | B6: =SUM(B7:B10) -> 741,132 | C6: =SUM(C7:C10) -> 819,284
A7: 随州市本级 | B7: 171,657 | C7: 212,482
A8: 曾都区 | B8: 138,927 | C8: 140,956
A9: 随县 | B9: 173,090 | C9: 205,188
A10: 广水市 | B10: 257,459 | C10: 260,658

Sheet 4、政府基金收入
A1: 附表4
A2: 市本级2018年政府性基金预算收入执行情况表
C3: 单位：万元
A4: 科目编码 | B4: 科目名称 | C4: 金额
A5: 10301 | B5: 政府性基金收入 | C5: 106,941
A6: 1030147 | B6: 农业土地开发资金收入 | C6: 92
A7: 1030148 | B7: 国有土地使用权出让收入 | C7: 97,520
A8: 103014801 | B8: 土地出让价款收入 | C8: 95,828
A9: 103014802 | B9: 补缴的土地价款 | C9: 6,354
A10: 103014898 | B10: 缴纳新增建设用地土地有偿使用费 | C10: -4,687
A11: 103014899 | B11: 其他土地出让收入 | C11: 24
A12: 1030156 | B12: 城市基础设施配套费收入 | C12: 5,641
A13: 1030178 | B13: 污水处理费收入 | C13: 3,329
A14: 1030199 | B14: 其他政府性基金收入 | C14: 359

Sheet 5、政府基金支出
A1: 附表5
A2: 市本级2018年政府性基金预算支出执行情况表
C3: 单位：万元
A4: 科目编码 | B4: 科目名称 | C4: 金额
B5: 政府性基金预算支出合计 | C5: 102,590
A6: 208 | B6: 社会保障和就业支出 | C6: 349
A7: 20822 | B7: 大中型水库移民后期扶持基金支出 | C7: 349
A8: 2082201 | B8: 移民补助 | C8: 155
A9: 2082202 | B9: 基础设施建设和经济发展 | C9: 168
A10: 2082299 | B10: 其他大中型水库移民后期扶持基金支出 | C10: 26
A11: 212 | B11: 城乡社区支出 | C11: 92,564
A12: 21208 | B12: 国有土地使用权出让收入及对应专项债务收入安排的支出 | C12: 85,904
A13: 2120801 | B13: 征地和拆迁补偿支出 | C13: 29,584
A14: 2120803 | B14: 城市建设支出 | C14: 43,771
A15: 2120806 | B15: 土地出让业务支出 | C15: 1,211
A16: 2120807 | B16: 廉租住房支出 | C16: 1,141
A17: 2120899 | B17: 其他国有土地使用权出让收入安排的支出 | C17: 10,197
A18: 21213 | B18: 城市基础设施配套费及对应专项债务收入安排的支出 | C18: 3,579
A19: 2121301 | B19: 城市公共设施 | C19: 1,182
A20: 2121302 | B20: 城市环境卫生 | C20: 1,087
A21: 2121304 | B21: 城市防洪 | C21: 15
A22: 2121399 | B22: 其他城市基础设施配套费安排的支出 | C22: 1,295
A23: 21214 | B23: 污水处理费及对应专项债务收入安排的支出 | C23: 3,081
A24: 2121401 | B24: 污水处理设施建设和运营 | C24: 1,633
A25: 2121499 | B25: 其他污水处理费安排的支出 | C25: 1,448
A26: 213 | B26: 农林水支出 | C26: 10
A27: 21366 | B27: 大中型水库库区基金及对应专项债务收入安排的支出 | C27: 10
A28: 2136601 | B28: 基础设施建设和经济发展 | C28: 10
A29: 214 | B29: 交通运输支出 | C29: 1,821
A30: 21462 | B30: 车辆通行费及对应专项债务收入安排的支出 | C30: 1,821
A31: 2146299 | B31: 其他车辆通行费安排的支出 | C31: 1,821
A32: 229 | B32: 其他支出 | C32: 2,672
A33: 22904 | B33: 其他政府性基金及对应专项债务收入安排的支出 | C33: 300
A34: 22908 | B34: 彩票发行销售机构业务费安排的支出 | C34: 12
A35: 2290808 | B35: 彩票市场调控资金支出 | C35: 12
A36: 22960 | B36: 彩票公益金及对应专项债务收入安排的支出 | C36: 2,360
A37: 2296002 | B37: 用于社会福利的彩票公益金支出 | C37: 1,522
A38: 2296003 | B38: 用于体育事业的彩票公益金支出 | C38: 838
A39: 232 | B39: 债务付息支出 | C39: 5,157
A40: 23204 | B40: 地方政府专项债务付息支出 | C40: 5,157
A41: 2320411 | B41: 国有土地使用权出让金债务付息支出 | C41: 5,157
A42: 233 | B42: 债务发行费用支出 | C42: 17
A43: 23304 | B43: 地方政府专项债务发行费用支出 | C43: 17
A44: 2330411 | B44: 国有土地使用权出让金债务发行费用支出 | C44: 17

Sheet 6、专项债务限额
A1: 附表6
A2: 随州市2018年专项政府债务余额表
A3: 单位：万元
A4: 地 区 | B4: 专项债务
B5: 余额 | C5: 限额
A6: 随州市 | B6: =SUM(B7:B10) -> 406,503 | C6: =SUM(C7:C10) -> 441,074
A7: 随州市本级 | B7: 200,345 | C7: 221,384
A8: 曾都区 | B8: 32,083 | C8: 32,586
A9: 随县 | B9: 72,138 | C9: 85,087
A10: 广水市 | B10: 101,937 | C10: 102,017

Sheet 7、社保基金预算收入
A1: 附表7
A2: 市本级2018年社会保险基金预算收入执行情况表
C3: 单位：万元
A4: 收入科目 | B4: 收入项目 | C4: 预算数
B5: 市本级社会保险基金收入合计 | C5: =C6+C30+C26+C14+C34+C18+C10+C22 -> 97705
A6: 10201 | B6: 一、企业职工基本养老保险基金收入 | C6: =C7+C8+C9 -> 40452
A7: 1020101 | B7: 其中：企业职工基本养老保险保险费收入 | C7: 32050
A8: 1020102 | B8: 企业职工基本养老保险基金财政补贴收入 | C8: 6522
A9: 1020103 | B9: 企业职工基本养老保险基金利息收入 | C9: 1880
A10: 10202 | B10: 二、失业保险基金收入 | C10: =C11+C12+C13 -> 1329
A11: 1200201 | B11: 其中：失业保险费收入 | C11: 1164
A12: 1200202 | B12: 失业保险基金财政补贴收入 | C12: 58
A13: 1200203 | B13: 失业保险基金利息收入 | C13: 107
A14: 10203 | B14: 三、城镇职工基本医疗保险基金收入 | C14: =C15+C16+C17 -> 23009
A15: 1020301 | B15: 其中：城镇职工基本医疗保险费收入 | C15: 22093
A16: 1020302 | B16: 城镇职工基本医疗保险基金 财政补贴收入 | C16: 280
A17: 1020303 | B17: 城镇职工基本医疗保险基金利息收入 | C17: 635
A18: 10204 | B18: 四、工伤保险基金收入 | C18: =C19+C20+C21 -> 1607
A19: 1020401 | B19: 其中：工伤保险费收入 | C19: 1607
A20: 1020402 | B20: 工伤保险基金 财政补贴收入
A21: 1020403 | B21: 工伤保险基金利息收入 | C21: 0
A22: 10205 | B22: 五、生育保险基金收入 | C22: =C23+C24+C25 -> 757
A23: 1020501 | B23: 其中：生育保险费收入 | C23: 757
A24: 1020502 | B24: 生育保险基金财政补贴收入
A25: 1020503 | B25: 生育保险基金利息收入 | C25: 0
A26: 10210 | B26: 六、城乡居民基本养老保险基金收入 | C26: =C27+C28+C29 -> 0
A27: 1021001 | B27: 其中：城乡居民基本养老保险费收入
A28: 1021002 | B28: 城乡居民基本养老保险基金财政补贴收入
A29: 1021003 | B29: 城乡居民基本养老保险基金利息收入
A30: 10211 | B30: 七、机关事业单位基本养老保险基金收入 | C30: =C31+C32+C33 -> 30551
A31: 1021101 | B31: 其中：机关事业单位基本养老保险费收入 | C31: 29376
A32: 1021102 | B32: 机关事业单位基本养老保险基金财政补贴收入 | C32: 1057
A33: 1021103 | B33: 机关事业单位基本养老保险基金利息收入 | C33: 118
A34: 10212 | B34: 八、城乡居民基本医疗保险基金收入
A35: 1021201 | B35: 其中：城乡居民基本医疗保险费收入
A36: 1021202 | B36: 城乡居民基本医疗保险基金 财政补贴收入
A37: 1021203 | B37: 城乡居民基本医疗保险基金利息收入

Sheet 8、社保基金预算支出
A1: 附表8
A2: 市本级2018年社会保险基金预算支出执行情况表
C3: 单位：万元
A4: 支出科目 | B4: 支出项目 | C4: 预算数
B5: 市本级社会保险基金支出合计 | C5: =C6+C24+C21+C12+C27+C15+C9+C18 -> 70241
A6: 20901 | B6: 一、企业职工基本养老保险基金支出 | C6: =SUM(C7:C8) -> 29099
A7: 2090101 | B7: 其中：基本养老金支出 | C7: 27998
A8: 2090199 | B8: 其他基本养老保险基金支出 | C8: 1101
A9: 20902 | B9: 二、失业保险基金支出 | C9: =SUM(C10:C11) -> 1369
A10: 2090201 | B10: 其中：失业保险金支出 | C10: 733
A11: 2090299 | B11: 其他失业保险基金支出 | C11: 636
A12: 20903 | B12: 三、城镇职工基本医疗保险基金支出 | C12: =SUM(C13:C14) -> 14276
A13: 2090301 | B13: 其中：基本医疗保险待遇支出 | C13: 13974
A14: 2090399 | B14: 其他基本医疗保险基金支出 | C14: 302
A15: 20904 | B15: 四、工伤保险基金支出 | C15: =SUM(C16:C17) -> 1298
A16: 2090401 | B16: 其中：工伤保险待遇支出 | C16: 1298
A17: 2090499 | B17: 其他工伤保险基金支出
A18: 20905 | B18: 五、生育保险基金支出 | C18: =SUM(C19:C20) -> 1463
A19: 2090501 | B19: 其中：生育保险待遇支出 | C19: 1463
A20: 2090599 | B20: 其他生育保险基金支出
A21: 20910 | B21: 六、城乡居民基本养老保险基金支出 | C21: =SUM(C22:C23) -> 0
A22: 2091001 | B22: 其中：基本养老金支出
A23: 2091099 | B23: 其他基本养老保险基金支出
A24: 20911 | B24: 七、机关事业单位基本养老保险基金支出 | C24: =SUM(C25:C26) -> 22735
A25: 2091101 | B25: 其中：基本养老金支出 | C25: 22735
A26: 2091199 | B26: 其他基本养老保险基金支出
A27: 20912 | B27: 八、城乡居民基本医疗保险基金支出 | C27: =SUM(C28:C29) -> 0
A28: 2091201 | B28: 其中：基本医疗保险待遇支出
A29: 2091299 | B29: 其他基本养老保险基金支出

Sheet 9、国有资本预算收入
A1: 附表9
A2: 市本级2018年国有资本经营预算收入执行情况表
C3: 单位：万元
A4: 科目编码 | B4: 科目名称 | C4: 金额
A5: 10306 | B5: 国有资本经营预算收入 | C5: 656
A6: 103060198 | B6: 其他国有资本经营预算企业利润收入 | C6: 656
B7: 鸿运国有资产运营公司 | C7: 49
B8: 金控集团 | C8: 141
B9: 交通建设投资有限公司 | C9: 64
B10: 城投公司 | C10: 402

Sheet 10、国有资本经营预算支出
A1: 附表10
A2: 市本级2018年国有资本经营预算支出执行情况表
C4: 单位：万元
A5: 科目编码 | B5: 科目名称 | C5: 金额
B6: 合计 | C6: =C7+C10 -> 656
A7: 223 | B7: 国有资本经营预算支出 | C7: 632
A8: 22399 | B8: 其他国有资本经营预算支出 | C8: 632
A9: 2239901 | B9: 其他国有资本经营预算支出 | C9: 632
A10: 230 | B10: 转移性支出 | C10: 24
A11: 23008 | B11: 调出资金 | C11: 24
A12: 2300803 | B12: 国有资本经营预算调出资金 | C12: 24
